[Event "SS Manhem Chess Week 2019 GM and IM tournaments"]
[Site "Molnlycke kulturhus, Biblioteksgatan 2, Molnlycke, Sweden"]
[Date "2019.08.15"]
[Round "8.3"]
[White "Lindgren, Philip"]
[Black "Vypkhaniuk, Ihor"]
[Result "1/2-1/2"]
[TimeControl "90 minutes for 40 moves + 30 minutes for the rest of the game + 30 seconds per move from move one."]
[WhiteTitle "IM"]
[BlackTitle "FM"]
[WhiteFideId "1713230"]
[BlackFideId "14112256"]
[WhiteElo "2362"]
[BlackElo "2405"]

1. c4 {[%clk 01:30:50]} {[%emt 00:00:08]} c5 {[%clk 01:30:26]} {[%emt
00:00:34]} 2. Nc3 {[%clk 01:28:23]} {[%emt 00:02:57]} g6 {[%clk 01:30:18]}
{[%emt 00:00:37]} 3. g3 {[%clk 01:26:53]} {[%emt 00:02:01]} Bg7 {[%clk
01:30:32]} {[%emt 00:00:16]} 4. Bg2 {[%clk 01:26:29]} {[%emt 00:00:54]} Nc6
{[%clk 01:31:00]} {[%emt 00:00:03]} 5. e3 {[%clk 01:22:58]} {[%emt 00:04:01]}
e6 {[%clk 01:30:50]} {[%emt 00:00:40]} 6. Nge2 {[%clk 01:18:46]} {[%emt
00:04:42]} Nge7 {[%clk 01:31:07]} {[%emt 00:00:13]} 7. d4 {[%clk 01:17:11]}
{[%emt 00:02:04]} cxd4 {[%clk 01:31:16]} {[%emt 00:00:22]} 8. exd4 {[%clk
01:16:28]} {[%emt 00:01:13]} d5 {[%clk 01:29:24]} {[%emt 00:02:22]} 9. cxd5
{[%clk 01:15:43]} {[%emt 00:01:15]} Nxd5 {[%clk 01:28:22]} {[%emt 00:01:32]} 10.
Nxd5 {[%clk 01:12:18]} {[%emt 00:03:56]} exd5 {[%clk 01:28:01]} {[%emt
00:00:50]} 11. Be3 {[%clk 01:11:30]} {[%emt 00:01:18]} O-O {[%clk 01:25:28]}
{[%emt 00:03:03]} 12. Qd2 {[%clk 01:05:05]} {[%emt 00:06:56]} Bf5 {[%clk
01:05:30]} {[%emt 00:20:26]} 13. Nc3 {[%clk 00:52:01]} {[%emt 00:13:34]} Be6
{[%clk 01:04:27]} {[%emt 00:01:34]} 14. O-O {[%clk 00:49:57]} {[%emt 00:02:34]}
Rc8 {[%clk 00:58:13]} {[%emt 00:06:45]} 15. Rfd1 {[%clk 00:45:07]} {[%emt
00:05:19]} Re8 {[%clk 00:57:05]} {[%emt 00:01:37]} 16. Rac1 {[%clk 00:41:08]}
{[%emt 00:04:31]} Bf8 {[%clk 00:51:58]} {[%emt 00:05:35]} 17. Bh6 {[%clk
00:34:27]} {[%emt 00:07:12]} Be7 {[%clk 00:30:33]} {[%emt 00:21:55]} 18. h4
{[%clk 00:29:34]} {[%emt 00:05:23]} Qd7 {[%clk 00:27:50]} {[%emt 00:03:14]} 19.
Qf4 {[%clk 00:27:35]} {[%emt 00:02:28]} Red8 {[%clk 00:14:40]} {[%emt
00:13:40]} 20. Bf3 {[%clk 00:17:31]} {[%emt 00:10:34]} Qd6 {[%clk 00:11:27]}
{[%emt 00:03:44]} 21. Qe3 {[%clk 00:15:48]} {[%emt 00:02:13]} Re8 {[%clk
00:10:26]} {[%emt 00:01:31]} 22. Bf4 {[%clk 00:08:49]} {[%emt 00:07:29]} Qd7
{[%clk 00:09:40]} {[%emt 00:01:17]} 23. Bg5 {[%clk 00:08:38]} {[%emt 00:00:40]}
f6 {[%clk 00:03:05]} {[%emt 00:07:05]} 24. Bh6 {[%clk 00:08:07]} {[%emt
00:01:01]} Bf7 {[%clk 00:01:23]} {[%emt 00:02:13]} 25. Qf4 {[%clk 00:08:15]}
{[%emt 00:00:21]} f5 {[%clk 00:01:25]} {[%emt 00:00:28]} 26. Bg5 {[%clk
00:06:39]} {[%emt 00:02:05]} Bf8 {[%clk 00:01:38]} {[%emt 00:00:18]} 27. Bf6
{[%clk 00:05:56]} {[%emt 00:01:13]} Bd6 {[%clk 00:00:43]} {[%emt 00:01:26]} 28.
Qd2 {[%clk 00:04:17]} {[%emt 00:02:08]} Bf8 {[%clk 00:01:03]} {[%emt 00:00:10]}
29. h5 {[%clk 00:04:08]} {[%emt 00:00:39]} Qd6 {[%clk 00:01:00]} {[%emt
00:00:34]} 30. hxg6 {[%clk 00:03:57]} {[%emt 00:00:41]} hxg6 {[%clk 00:01:29]}
{[%emt 00:00:01]} 31. Qg5 {[%clk 00:02:48]} {[%emt 00:01:38]} Bg7 {[%clk
00:01:51]} {[%emt 00:00:07]} 32. Bxg7 {[%clk 00:01:58]} {[%emt 00:01:20]} Kxg7
{[%clk 00:02:20]} {[%emt 00:00:01]} 33. Kg2 {[%clk 00:00:50]} {[%emt 00:01:38]}
Rcd8 {[%clk 00:02:19]} {[%emt 00:00:32]} 34. Rh1 {[%clk 00:00:50]} {[%emt
00:00:29]} Rh8 {[%clk 00:02:47]} {[%emt 00:00:02]} 35. Ne2 {[%clk 00:00:37]}
{[%emt 00:00:43]} Qf6 {[%clk 00:02:28]} {[%emt 00:00:49]} 36. Qxf6+ {[%clk
00:00:34]} {[%emt 00:00:33]} Kxf6 {[%clk 00:02:57]} {[%emt 00:00:01]} 37. Rxh8
{[%clk 00:00:48]} {[%emt 00:00:15]} Rxh8 {[%clk 00:03:26]} 38. Rc5 {[%clk
00:00:40]} {[%emt 00:00:38]} 1/2-1/2

[Event "SS Manhem Chess Week 2019 GM and IM tournaments"]
[Site "Molnlycke kulturhus, Biblioteksgatan 2, Molnlycke, Sweden"]
[Date "2019.08.15"]
[Round "8.4"]
[White "Wiedenkeller, Michael"]
[Black "Ahlander, Bjorn"]
[Result "0-1"]
[TimeControl "90 minutes for 40 moves + 30 minutes for the rest of the game + 30 seconds per move from move one."]
[WhiteTitle "IM"]
[BlackTitle "IM"]
[WhiteFideId "1700146"]
[BlackFideId "1700251"]
[WhiteElo "2456"]
[BlackElo "2390"]

1. d4 {[%clk 01:30:41]} {[%emt 00:00:17]} Nf6 {[%clk 01:30:54]} {[%emt
00:00:06]} 2. c4 {[%clk 01:30:53]} {[%emt 00:00:18]} e6 {[%clk 01:31:19]}
{[%emt 00:00:06]} 3. Nc3 {[%clk 01:30:52]} {[%emt 00:00:31]} Bb4 {[%clk
01:31:45]} {[%emt 00:00:04]} 4. Qc2 {[%clk 01:30:49]} {[%emt 00:00:33]} d5
{[%clk 01:30:55]} {[%emt 00:01:20]} 5. a3 {[%clk 01:30:29]} {[%emt 00:00:51]}
Bxc3+ {[%clk 01:30:55]} {[%emt 00:00:28]} 6. Qxc3 {[%clk 01:30:45]} {[%emt
00:00:15]} dxc4 {[%clk 01:28:39]} {[%emt 00:02:46]} 7. Qxc4 {[%clk 01:29:37]}
{[%emt 00:01:39]} b6 {[%clk 01:27:28]} {[%emt 00:01:40]} 8. Nf3 {[%clk
01:24:15]} {[%emt 00:05:51]} O-O {[%clk 01:24:12]} {[%emt 00:03:46]} 9. Bf4
{[%clk 01:17:16]} {[%emt 00:07:29]} Nd5 {[%clk 01:21:15]} {[%emt 00:03:27]} 10.
Bg3 {[%clk 01:17:11]} {[%emt 00:00:35]} Ba6 {[%clk 01:20:21]} {[%emt 00:01:24]}
11. Qc2 {[%clk 01:15:29]} {[%emt 00:02:12]} c5 {[%clk 01:07:01]} {[%emt
00:13:50]} 12. e4 {[%clk 01:08:50]} {[%emt 00:07:09]} Bxf1 {[%clk 01:07:27]}
{[%emt 00:00:05]} 13. Rxf1 {[%clk 01:08:16]} {[%emt 00:01:05]} Nf6 {[%clk
01:07:06]} {[%emt 00:00:50]} 14. O-O-O {[%clk 01:01:33]} {[%emt 00:07:13]} Nbd7
{[%clk 00:59:48]} {[%emt 00:07:47]} 15. d5 {[%clk 00:58:37]} {[%emt 00:03:27]}
Re8 {[%clk 00:45:36]} {[%emt 00:14:42]} 16. dxe6 {[%clk 00:53:24]} {[%emt
00:05:44]} fxe6 {[%clk 00:46:03]} {[%emt 00:00:02]} 17. Rd6 {[%clk 00:48:48]}
{[%emt 00:05:06]} Qe7 {[%clk 00:44:49]} {[%emt 00:01:44]} 18. Rfd1 {[%clk
00:48:06]} {[%emt 00:01:13]} Nf8 {[%clk 00:44:58]} {[%emt 00:00:20]} 19. Kb1
{[%clk 00:42:30]} {[%emt 00:06:08]} Rac8 {[%clk 00:42:14]} {[%emt 00:03:13]} 20.
Bh4 {[%clk 00:39:21]} {[%emt 00:03:39]} Qb7 {[%clk 00:39:57]} {[%emt 00:02:48]}
21. Bxf6 {[%clk 00:36:20]} {[%emt 00:03:31]} gxf6 {[%clk 00:40:24]} {[%emt
00:00:02]} 22. Ka1 {[%clk 00:36:03]} {[%emt 00:00:48]} b5 {[%clk 00:31:22]}
{[%emt 00:09:31]} 23. e5 {[%clk 00:34:52]} {[%emt 00:01:41]} f5 {[%clk
00:30:41]} {[%emt 00:01:10]} 24. Qd2 {[%clk 00:33:55]} {[%emt 00:01:27]} Rc7
{[%clk 00:27:22]} {[%emt 00:03:49]} 25. Qa5 {[%clk 00:27:57]} {[%emt 00:06:29]}
b4 {[%clk 00:25:45]} {[%emt 00:02:06]} 26. Rd8 {[%clk 00:27:18]} {[%emt
00:01:08]} bxa3 {[%clk 00:25:14]} {[%emt 00:01:03]} 27. Qxa3 {[%clk 00:25:42]}
{[%emt 00:02:07]} Rxd8 {[%clk 00:23:37]} {[%emt 00:02:07]} 28. Rxd8 {[%clk
00:23:02]} {[%emt 00:03:10]} Rd7 {[%clk 00:21:13]} {[%emt 00:02:53]} 29. Rxd7
{[%clk 00:22:52]} {[%emt 00:00:41]} Nxd7 {[%clk 00:19:33]} {[%emt 00:02:10]} 30.
Qd3 {[%clk 00:21:37]} {[%emt 00:01:44]} Qc6 {[%clk 00:18:31]} {[%emt 00:01:31]}
31. Qc4 {[%clk 00:19:20]} {[%emt 00:02:49]} h6 {[%clk 00:12:42]} {[%emt
00:06:18]} 32. Kb1 {[%clk 00:13:08]} {[%emt 00:06:43]} Kf7 {[%clk 00:09:23]}
{[%emt 00:03:49]} 33. Kc2 {[%clk 00:09:59]} {[%emt 00:03:38]} Nb6 {[%clk
00:08:07]} {[%emt 00:01:46]} 34. Qh4 {[%clk 00:09:09]} {[%emt 00:01:21]} Nd5
{[%clk 00:06:12]} {[%emt 00:02:24]} 35. b3 {[%clk 00:04:54]} {[%emt 00:04:46]}
Qa6 {[%clk 00:05:47]} {[%emt 00:00:55]} 36. Nd2 {[%clk 00:03:26]} {[%emt
00:01:58]} Qa1 {[%clk 00:03:40]} {[%emt 00:02:36]} 37. Nc4 {[%clk 00:02:08]}
{[%emt 00:01:49]} Nb4+ {[%clk 00:01:43]} {[%emt 00:02:26]} 38. Kd2 {[%clk
00:02:30]} {[%emt 00:00:09]} Qa2+ {[%clk 00:02:00]} {[%emt 00:00:12]} 39. Ke1
{[%clk 00:02:00]} {[%emt 00:01:01]} Qb1+ {[%clk 00:02:08]} {[%emt 00:00:22]} 40.
Ke2 {[%clk 00:02:03]} {[%emt 00:00:27]} Qd3+ {[%clk 00:02:27]} {[%emt
00:00:10]} 0-1

[Event "SS Manhem Chess Week 2019 GM and IM tournaments"]
[Site "Molnlycke kulturhus, Biblioteksgatan 2, Molnlycke, Sweden"]
[Date "2019.08.15"]
[Round "8.6"]
[White "Jacobsen, Mikkel Manosri"]
[Black "Malmstig, Erik"]
[Result "1/2-1/2"]
[TimeControl "90 minutes for 40 moves + 30 minutes for the rest of the game + 30 seconds per move from move one."]
[WhiteTitle "FM"]
[BlackTitle "FM"]
[WhiteFideId "1444514"]
[BlackFideId "1702866"]
[WhiteElo "2269"]
[BlackElo "2335"]

1. Nf3 {[%clk 01:30:56]} {[%emt 00:00:02]} d6 {[%clk 01:30:34]} {[%emt
00:00:27]} 2. e3 {[%clk 01:31:23]} {[%emt 00:00:04]} g6 {[%clk 01:30:21]}
{[%emt 00:00:42]} 3. c4 {[%clk 01:31:24]} {[%emt 00:00:30]} e5 {[%clk
01:29:16]} {[%emt 00:01:35]} 4. Nc3 {[%clk 01:31:48]} {[%emt 00:00:06]} Bg7
{[%clk 01:28:49]} {[%emt 00:00:50]} 5. Be2 {[%clk 01:28:20]} {[%emt 00:04:05]}
Ne7 {[%clk 01:27:58]} {[%emt 00:01:20]} 6. b3 {[%clk 01:26:22]} {[%emt
00:02:29]} O-O {[%clk 01:27:37]} {[%emt 00:00:50]} 7. Bb2 {[%clk 01:26:35]}
{[%emt 00:00:17]} f5 {[%clk 01:25:07]} {[%emt 00:03:00]} 8. d3 {[%clk
01:24:43]} {[%emt 00:02:22]} c6 {[%clk 01:23:22]} {[%emt 00:02:16]} 9. h4
{[%clk 01:23:25]} {[%emt 00:01:48]} h6 {[%clk 01:22:48]} {[%emt 00:01:02]} 10.
Qc2 {[%clk 01:22:52]} {[%emt 00:01:04]} Be6 {[%clk 01:22:16]} {[%emt 00:01:02]}
11. b4 {[%clk 01:15:45]} {[%emt 00:07:38]} Nd7 {[%clk 01:20:22]} {[%emt
00:02:23]} 12. a4 {[%clk 01:14:42]} {[%emt 00:01:33]} a5 {[%clk 01:17:55]}
{[%emt 00:02:58]} 13. b5 {[%clk 01:15:06]} {[%emt 00:00:05]} d5 {[%clk
01:16:30]} {[%emt 00:01:56]} 14. d4 {[%clk 01:05:05]} {[%emt 00:10:31]} e4
{[%clk 01:07:58]} {[%emt 00:09:03]} 15. Nd2 {[%clk 01:04:48]} {[%emt 00:00:46]}
f4 {[%clk 01:05:52]} {[%emt 00:02:37]} 16. Nf1 {[%clk 00:50:05]} {[%emt
00:15:12]} Qe8 {[%clk 01:00:09]} {[%emt 00:06:14]} 17. bxc6 {[%clk 00:43:55]}
{[%emt 00:06:40]} bxc6 {[%clk 00:58:55]} {[%emt 00:01:44]} 18. cxd5 {[%clk
00:44:23]} {[%emt 00:00:02]} cxd5 {[%clk 00:58:27]} {[%emt 00:00:57]} 19. Nb5
{[%clk 00:44:37]} {[%emt 00:00:15]} Qf7 {[%clk 00:51:33]} {[%emt 00:07:23]} 20.
Nd6 {[%clk 00:28:49]} {[%emt 00:16:20]} Qf6 {[%clk 00:51:31]} {[%emt 00:00:31]}
21. Bb5 {[%clk 00:29:15]} {[%emt 00:00:05]} Nb6 {[%clk 00:43:40]} {[%emt
00:08:21]} 22. Qd2 {[%clk 00:28:35]} {[%emt 00:01:11]} Bd7 {[%clk 00:40:04]}
{[%emt 00:04:06]} 23. Ba3 {[%clk 00:28:59]} {[%emt 00:00:06]} Bxb5 {[%clk
00:39:30]} {[%emt 00:01:03]} 24. axb5 {[%clk 00:29:27]} {[%emt 00:00:02]} Rad8
{[%clk 00:39:11]} {[%emt 00:00:48]} 25. exf4 {[%clk 00:26:22]} {[%emt
00:03:36]} Rxd6 {[%clk 00:38:56]} {[%emt 00:00:46]} 26. Bxd6 {[%clk 00:26:49]}
{[%emt 00:00:02]} Qxd6 {[%clk 00:39:01]} {[%emt 00:00:24]} 27. Ne3 {[%clk
00:27:17]} {[%emt 00:00:02]} a4 {[%clk 00:36:39]} {[%emt 00:02:53]} 28. g3
{[%clk 00:27:01]} {[%emt 00:00:46]} Rc8 {[%clk 00:36:08]} {[%emt 00:01:01]} 29.
O-O {[%clk 00:27:15]} {[%emt 00:00:16]} Nc4 {[%clk 00:36:19]} {[%emt 00:00:19]}
30. Nxc4 {[%clk 00:27:30]} {[%emt 00:00:15]} Rxc4 {[%clk 00:36:17]} {[%emt
00:00:32]} 31. Qa5 {[%clk 00:27:31]} {[%emt 00:00:29]} Bxd4 {[%clk 00:35:34]}
{[%emt 00:01:12]} 32. Rxa4 {[%clk 00:27:44]} {[%emt 00:00:18]} Bb6 {[%clk
00:33:55]} {[%emt 00:02:08]} 33. Qa8+ {[%clk 00:27:40]} {[%emt 00:00:35]} Rc8
{[%clk 00:32:57]} {[%emt 00:01:29]} 34. Qb7 {[%clk 00:28:01]} {[%emt 00:00:10]}
Rb8 {[%clk 00:31:53]} {[%emt 00:01:33]} 35. Ra8 {[%clk 00:28:09]} {[%emt
00:00:22]} Rxa8 {[%clk 00:32:17]} {[%emt 00:00:07]} 36. Qxa8+ {[%clk 00:28:37]}
{[%emt 00:00:02]} Kg7 {[%clk 00:32:17]} {[%emt 00:00:28]} 37. Kg2 {[%clk
00:28:49]} {[%emt 00:00:19]} h5 {[%clk 00:31:22]} {[%emt 00:01:25]} 38. Rc1
{[%clk 00:28:15]} {[%emt 00:01:04]} Qe6 {[%clk 00:26:36]} {[%emt 00:05:16]} 39.
Qb7 {[%clk 00:28:28]} {[%emt 00:00:18]} Kf6 {[%clk 00:24:17]} {[%emt 00:02:47]}
40. Rc3 {[%clk 00:06:45]} {[%emt 00:22:13]} Qd6 {[%clk 00:12:49]} {[%emt
00:11:58]} 41. Rc6 {[%clk 00:06:38]} {[%emt 00:00:38]} Nxc6 {[%clk 00:12:10]}
{[%emt 00:01:09]} 42. Qxb6 {[%clk 00:07:01]} {[%emt 00:00:06]} d4 {[%clk
00:08:30]} {[%emt 00:04:09]} 43. bxc6 {[%clk 00:07:14]} {[%emt 00:00:17]} d3
{[%clk 00:08:21]} {[%emt 00:00:40]} 44. Qb2+ {[%clk 00:06:46]} {[%emt
00:00:58]} Ke7 {[%clk 00:04:51]} {[%emt 00:03:59]} 45. Qb7+ {[%clk 00:04:12]}
{[%emt 00:03:04]} Kd8 {[%clk 00:04:49]} {[%emt 00:00:32]} 46. Qa8+ {[%clk
00:04:13]} {[%emt 00:00:28]} Kc7 {[%clk 00:04:53]} {[%emt 00:00:27]} 47. Qb7+
{[%clk 00:04:34]} {[%emt 00:00:09]} Kd8 {[%clk 00:05:17]} {[%emt 00:00:05]} 48.
Qb4 {[%emt 00:01:12]} 1/2-1/2

[Event "SS Manhem Chess Week 2019 GM and IM tournaments"]
[Site "Molnlycke kulturhus, Biblioteksgatan 2, Molnlycke, Sweden"]
[Date "2019.08.15"]
[Round "8.7"]
[White "Borsuk, Konstantin"]
[Black "Pham, Bich Ngoc"]
[Result "1-0"]
[TimeControl "90 minutes for 40 moves + 30 minutes for the rest of the game + 30 seconds per move from move one."]
[WhiteTitle "FM"]
[BlackTitle "WIM"]
[WhiteFideId "14113406"]
[BlackFideId "12401285"]
[WhiteElo "2372"]
[BlackElo "2176"]

1. d4 {[%clk 01:30:57]} {[%emt 00:00:02]} f5 {[%clk 01:24:23]} {[%emt
00:06:38]} 2. g3 {[%clk 01:30:44]} {[%emt 00:00:43]} Nf6 {[%clk 01:24:47]}
{[%emt 00:00:05]} 3. Bg2 {[%clk 01:31:08]} {[%emt 00:00:06]} g6 {[%clk
01:25:13]} {[%emt 00:00:05]} 4. Nf3 {[%clk 01:31:27]} {[%emt 00:00:10]} Bg7
{[%clk 01:25:39]} {[%emt 00:00:05]} 5. O-O {[%clk 01:31:43]} {[%emt 00:00:14]}
O-O {[%clk 01:26:02]} {[%emt 00:00:07]} 6. c4 {[%clk 01:31:22]} {[%emt
00:00:52]} d6 {[%clk 01:26:25]} {[%emt 00:00:07]} 7. Nc3 {[%clk 01:31:27]}
{[%emt 00:00:54]} c6 {[%clk 01:27:17]} {[%emt 00:00:09]} 8. Qb3 {[%clk
01:19:33]} {[%emt 00:12:25]} Na6 {[%clk 01:24:11]} {[%emt 00:03:36]} 9. Qa3
{[%clk 01:08:50]} {[%emt 00:11:13]} Ne4 {[%clk 01:20:46]} {[%emt 00:03:54]} 10.
Rd1 {[%clk 00:57:03]} {[%emt 00:12:17]} Be6 {[%clk 01:07:44]} {[%emt 00:13:32]}
11. d5 {[%clk 00:51:04]} {[%emt 00:06:30]} Nxc3 {[%clk 01:03:47]} {[%emt
00:04:26]} 12. bxc3 {[%clk 00:47:44]} {[%emt 00:03:49]} cxd5 {[%clk 00:52:32]}
{[%emt 00:11:46]} 13. Ng5 {[%clk 00:44:44]} {[%emt 00:03:30]} Nc7 {[%clk
00:51:18]} {[%emt 00:01:45]} 14. Nxe6 {[%clk 00:42:08]} {[%emt 00:03:06]} Nxe6
{[%clk 00:51:42]} {[%emt 00:00:06]} 15. Bxd5 {[%clk 00:42:18]} {[%emt
00:00:19]} Qd7 {[%clk 00:50:46]} {[%emt 00:01:27]} 16. Rb1 {[%clk 00:41:04]}
{[%emt 00:01:43]} Rfb8 {[%clk 00:48:44]} {[%emt 00:02:32]} 17. c5 {[%clk
00:40:15]} {[%emt 00:01:19]} dxc5 {[%clk 00:44:29]} {[%emt 00:04:46]} 18. Bf4
{[%clk 00:31:58]} {[%emt 00:08:47]} Rd8 {[%clk 00:40:10]} {[%emt 00:04:49]} 19.
Qb3 {[%clk 00:31:46]} {[%emt 00:00:41]} Kf7 {[%clk 00:40:21]} {[%emt 00:00:18]}
20. Bxb7 {[%clk 00:27:44]} {[%emt 00:04:33]} c4 {[%clk 00:40:23]} {[%emt
00:00:28]} 21. Qc2 {[%clk 00:26:02]} {[%emt 00:02:12]} Qe8 {[%clk 00:40:43]}
{[%emt 00:00:10]} 22. Bxa8 {[%clk 00:25:21]} {[%emt 00:01:11]} Rxa8 {[%clk
00:41:03]} {[%emt 00:00:10]} 23. Be3 {[%clk 00:18:28]} {[%emt 00:07:23]} Qc6
{[%clk 00:41:21]} {[%emt 00:00:12]} 24. Qb2 {[%clk 00:17:50]} {[%emt 00:01:07]}
Rc8 {[%clk 00:39:58]} {[%emt 00:01:53]} 25. Bxa7 {[%clk 00:13:49]} {[%emt
00:04:32]} Ng5 {[%clk 00:40:22]} {[%emt 00:00:05]} 26. f3 {[%clk 00:13:23]}
{[%emt 00:00:56]} Qe6 {[%clk 00:38:21]} {[%emt 00:02:31]} 27. Qd2 {[%clk
00:08:57]} {[%emt 00:04:55]} Bf6 {[%clk 00:37:41]} {[%emt 00:01:11]} 28. h4
{[%clk 00:02:59]} {[%emt 00:06:28]} Qa6 {[%clk 00:35:08]} {[%emt 00:03:03]} 29.
hxg5 {[%clk 00:02:21]} {[%emt 00:01:08]} Qxa7+ {[%clk 00:35:33]} {[%emt
00:00:06]} 30. Kg2 {[%clk 00:02:41]} {[%emt 00:00:09]} Bg7 {[%clk 00:35:53]}
{[%emt 00:00:10]} 31. Qd5+ {[%clk 00:02:36]} {[%emt 00:00:35]} Kf8 {[%clk
00:36:16]} {[%emt 00:00:07]} 32. Qe6 {[%clk 00:01:53]} {[%emt 00:01:14]} Re8
{[%clk 00:35:21]} {[%emt 00:01:25]} 33. Rd7 {[%clk 00:01:30]} {[%emt 00:00:52]}
Qc5 {[%clk 00:35:46]} {[%emt 00:00:06]} 34. Rb4 {[%clk 00:01:11]} {[%emt
00:00:49]} Bxc3 {[%clk 00:35:38]} {[%emt 00:00:38]} 35. Rxc4 {[%clk 00:01:35]}
{[%emt 00:00:06]} Qa3 {[%clk 00:34:55]} {[%emt 00:01:12]} 36. Rd3 {[%clk
00:01:15]} {[%emt 00:00:49]} Qxa2 {[%clk 00:35:12]} {[%emt 00:00:14]} 37. Rdxc3
{[%clk 00:01:36]} {[%emt 00:00:09]} 1-0

[Event "SS Manhem Chess Week 2019 GM and IM tournaments"]
[Site "Molnlycke kulturhus, Biblioteksgatan 2, Molnlycke, Sweden"]
[Date "2019.08.15"]
[Round "8.8"]
[White "Fries-Nielsen, Jens Ove"]
[Black "Rydstrom, Tom"]
[Result "1-0"]
[TimeControl "90 minutes for 40 moves + 30 minutes for the rest of the game + 30 seconds per move from move one."]
[WhiteTitle "IM"]
[BlackTitle "FM"]
[WhiteFideId "1400142"]
[BlackFideId "1714830"]
[WhiteElo "2351"]
[BlackElo "2314"]

1. d4 {[%clk 01:30:49]} {[%emt 00:00:10]} d5 {[%clk 01:27:38]} {[%emt
00:03:18]} 2. b3 {[%clk 01:30:51]} {[%emt 00:00:33]} Nf6 {[%clk 01:27:35]}
{[%emt 00:00:32]} 3. Ba3 {[%clk 01:31:04]} {[%emt 00:00:16]} g6 {[%clk
01:20:30]} {[%emt 00:07:35]} 4. e3 {[%clk 01:31:12]} {[%emt 00:00:22]} Bg7
{[%clk 01:20:47]} {[%emt 00:00:13]} 5. Nf3 {[%clk 01:31:41]} {[%emt 00:00:01]}
O-O {[%clk 01:20:55]} {[%emt 00:00:20]} 6. c4 {[%clk 01:30:39]} {[%emt
00:01:34]} c6 {[%clk 01:18:38]} {[%emt 00:02:46]} 7. Bd3 {[%clk 01:27:50]}
{[%emt 00:03:19]} Re8 {[%clk 01:18:42]} {[%emt 00:00:26]} 8. O-O {[%clk
01:27:13]} {[%emt 00:01:07]} Bg4 {[%clk 01:17:55]} {[%emt 00:01:17]} 9. Nbd2
{[%clk 01:22:10]} {[%emt 00:05:33]} Nbd7 {[%clk 01:16:53]} {[%emt 00:01:32]} 10.
cxd5 {[%clk 01:21:32]} {[%emt 00:01:08]} cxd5 {[%clk 01:17:02]} {[%emt
00:00:22]} 11. Qb1 {[%clk 01:21:00]} {[%emt 00:01:01]} e5 {[%clk 01:15:23]}
{[%emt 00:02:10]} 12. dxe5 {[%clk 01:16:19]} {[%emt 00:05:11]} Ne4 {[%clk
01:07:19]} {[%emt 00:08:34]} 13. Nxe4 {[%clk 00:48:46]} {[%emt 00:28:03]} dxe4
{[%clk 01:06:35]} {[%emt 00:01:14]} 14. Bxe4 {[%clk 00:48:59]} {[%emt
00:00:16]} Nxe5 {[%clk 01:04:28]} {[%emt 00:02:37]} 15. Nd4 {[%clk 00:48:09]}
{[%emt 00:01:20]} f5 {[%clk 00:57:33]} {[%emt 00:07:26]} 16. Bxb7 {[%clk
00:47:29]} {[%emt 00:01:11]} Rb8 {[%clk 00:42:08]} {[%emt 00:15:55]} 17. Bc6
{[%clk 00:43:07]} {[%emt 00:04:50]} f4 {[%clk 00:32:44]} {[%emt 00:09:54]} 18.
Bxe8 {[%clk 00:42:26]} {[%emt 00:01:12]} f3 {[%clk 00:29:44]} {[%emt 00:03:30]}
19. Bc6 {[%clk 00:41:04]} {[%emt 00:01:52]} Qg5 {[%clk 00:17:28]} {[%emt
00:12:47]} 20. Bd5+ {[%clk 00:38:18]} {[%emt 00:03:16]} Kh8 {[%clk 00:17:51]}
{[%emt 00:00:07]} 21. Qe4 {[%clk 00:25:07]} {[%emt 00:13:41]} Re8 {[%clk
00:09:10]} {[%emt 00:09:11]} 22. Qf4 {[%clk 00:24:00]} {[%emt 00:01:37]} Qh5
{[%clk 00:08:58]} {[%emt 00:00:41]} 23. Bxf3 {[%clk 00:20:38]} {[%emt
00:03:52]} g5 {[%clk 00:04:22]} {[%emt 00:05:05]} 24. Qg3 {[%clk 00:18:54]}
{[%emt 00:02:15]} Bxf3 {[%clk 00:04:19]} {[%emt 00:00:33]} 25. gxf3 {[%clk
00:18:05]} {[%emt 00:01:19]} 1-0